fUSD/lending_fUSD_20250612
["ID","MTS","AMOUNT","RATE_DAILY","PERIOD"]
[365507861,1749721833071,-301.4,0.0001988,2]
[365507863,1749721833080,-151.0,0.00019886,2]
[365507865,1749721833090,-503.68,0.00019887,2]
[365507866,1749721833099,-499.51,0.00019887,2]
[365507868,1749721833110,-509.58,0.00019887,2]
[365507870,1749721833126,-504.45,0.00019887,2]
[365507872,1749721833139,-508.57,0.00019887,2]
[365507874,1749721833148,-507.58,0.00019887,2]
[365507876,1749721833158,-502.44,0.00019887,2]
[365507877,1749721833167,-150.0,0.00019888,2]
[365507879,1749721833177,-500.0,0.00019888,2]
[365507881,1749721833187,-150.0,0.00019888,2]
[365507883,1749721833197,-500.0,0.00019888,2]
[365507885,1749721833207,-1011.0,0.00019888,2]
[365507887,1749721833217,-2304.36454639,0.00019889,2]
[365507888,1749721833227,-1000.0,0.00019889,2]
[365507889,1749721833237,-1000.0,0.00019889,2]
[365507890,1749721833247,-1000.0,0.00019889,2]
[365507891,1749721833259,-1000.0,0.00019889,2]
[365507892,1749721833274,-1000.0,0.00019889,2]
[365507893,1749721833283,-1000.0,0.00019889,2]
[365507894,1749721833293,-1000.0,0.00019889,2]
[365507895,1749721833303,-1000.0,0.00019889,2]
[365507896,1749721833313,-1000.0,0.00019889,2]
[365507897,1749721833323,-1000.0,0.00019889,2]
[365507898,1749721833333,-1000.0,0.00019889,2]
[365507899,1749721833343,-1000.0,0.00019889,2]
[365507900,1749721833352,-1000.0,0.00019889,2]
[365507901,1749721833362,-1000.0,0.00019889,2]
[365507902,1749721833372,-1000.0,0.00019889,2]
[365507903,1749721833381,-1000.0,0.00019889,2]
[365507905,1749721833390,-1000.0,0.00019889,2]
[365507907,1749721833400,-1000.0,0.00019889,2]
[365507909,1749721833409,-1000.0,0.00019889,2]
[365507911,1749721833419,-1000.0,0.00019889,2]
[365507913,1749721833428,-1000.0,0.00019889,2]
[365507915,1749721833437,-1000.0,0.00019889,2]
[365507917,1749721833446,-1000.0,0.00019889,2]
[365507919,1749721833455,-1000.0,0.00019889,2]
[365507921,1749721833466,-1000.0,0.00019889,2]
[365507922,1749721833475,-1000.0,0.00019889,2]
[365507924,1749721833485,-1000.0,0.00019889,2]
[365507926,1749721833495,-1000.0,0.00019889,2]
[365507929,1749721833505,-1000.0,0.00019889,2]
[365507930,1749721833514,-1000.0,0.00019889,2]
[365507933,1749721833523,-1000.0,0.00019889,2]
[365507935,1749721833533,-1000.0,0.00019889,2]
[365507937,1749721833542,-1000.0,0.00019889,2]
[365507939,1749721833551,-1000.0,0.00019889,2]
[365507941,1749721833561,-629.72229772,0.00019889,2]
[365507943,1749721833572,-500.0,0.00019889,2]
[365507945,1749721833582,-150.0,0.00019889,2]
[365507947,1749721833592,-150.0,0.00019889,2]
[365507949,1749721833602,-269.90338005,0.00019889,2]
[365507951,1749721833611,-150.0,0.00019889,2]
[365507953,1749721833620,-500.0,0.00019889,2]
[365507955,1749721833631,-500.0,0.00019889,2]
[365507956,1749721833640,-250.0,0.00019889,2]
[365507958,1749721833650,-150.0,0.00019889,2]
[365507960,1749721833659,-150.0,0.00019889,2]
[365507962,1749721833669,-210.55618877,0.0001989,2]
[365507964,1749721833678,-178.73500604,0.00019893,2]
[365507966,1749721833689,-178.73500602,0.00019897,2]
[365507968,1749721833697,-1051.0404504,0.00019899,3]
[365507970,1749721833707,-70990.67823063,0.000199,2]
[365507972,1749721833717,-71225.26693196,0.000199,2]
[365507977,1749721833757,-56725.68252356,0.000199,2]
[365507979,1749721833768,-14007.69512052,0.000199,2]
[365507981,1749721833778,-178.73500602,0.000199,2]
[365507982,1749721833788,-1000.0,0.000199,2]
[365507983,1749721833798,-210.55618876,0.000199,2]
[365507984,1749721833807,-151.0,0.000199,2]
[365507985,1749721833817,-151.0,0.000199,2]
[365507986,1749721833827,-179.957037,0.000199,2]
[365507987,1749721833836,-151.0,0.000199,2]
[365507988,1749721833846,-150.54311223,0.000199,2]
[365507989,1749721833855,-151.0,0.000199,2]
[365507990,1749721833866,-151.0,0.000199,2]
[365507991,1749721833875,-151.0,0.000199,2]
[365507992,1749721833885,-151.0,0.000199,2]
[365507993,1749721833895,-292.244143,0.000199,2]
[365507994,1749721833905,-292.244143,0.000199,2]
[365507995,1749721833915,-456.177222,0.000199,2]
[365507996,1749721833924,-456.177222,0.000199,2]
[365507997,1749721833935,-456.177222,0.000199,2]
[365507998,1749721833944,-456.177222,0.000199,2]
[365507999,1749721833955,-1696.31636147,0.000199,2]
[365508001,1749721838201,-8135.01227428,0.000199,3]
[365508002,1749721838212,-6868.9455,0.000199,3]
[365508003,1749721838606,-600.0,0.000199,3]
[365508004,1749721838633,-606.4717904,0.000199,3]
[365508171,1749721840260,-1338.30000001,0.000199,3]
[365508173,1749721840272,-4118.9766,0.000199,3]
[365508216,1749721840668,-2131.54546503,0.000199,3]
[365508798,1749721846260,-316.12544027,0.00018599,2]
[365508800,1749721846270,-500.0,0.00018599,2]
[365508802,1749721846279,-500.0,0.00018599,2]
[365508804,1749721846287,-14.25315972,0.00018599,2]
[365508851,1749721846716,-485.74684028,0.00018599,2]
[365508853,1749721846726,-500.0,0.00018599,2]
[365508855,1749721846735,-500.0,0.00018599,2]
[365508857,1749721846745,-500.0,0.00018599,2]
[365508859,1749721846754,-500.0,0.00018599,2]
[365508861,1749721846763,-366.3863196,0.00018599,2]
[365508863,1749721846772,-321.47784012,0.00018599,2]
[365509088,1749721862603,594.0,0.0002465,120]
[365509089,1749721912074,1000.0,0.00024657,120]
[365509092,1749721935716,1000.0,0.00024657,120]
[365509093,1749721957909,820.0,0.00024657,120]
[365509094,1749721972988,820.72922579,0.00024657,120]
[365509095,1749721984584,500.0,0.00016174,2]
[365509096,1749721984675,302.0,0.00024657,120]
[365509097,1749722018109,500.0,0.00016174,2]
[365509100,1749722030728,-36476.66490502,0.0002,14]
[365509101,1749722030750,-3041.60573605,0.0002,14]
[365509105,1749722270674,346.29,0.000246,120]
[365509106,1749722284761,346.29,0.000246,120]
[365509107,1749722307812,670.64,0.00016939,2]
[365509110,1749722785231,195.8,0.00013699,2]
[365509112,1749722828895,500.0,0.00024658,120]
[365509113,1749722849100,-1451.42466456,0.00018413,2]
[365509114,1749722893060,-177.12607693,0.00018025,2]
[365509115,1749722895758,-25.87392307,0.00018025,2]
[365509116,1749722973254,499.99,0.00024658,120]
[365509117,1749723011447,409.69160989,0.000246,120]
[365509118,1749723017274,490.0,0.00024658,120]
[365509124,1749723032475,-165.087348,0.00018413,2]
[365509125,1749723032485,-250.0,0.0001846,2]
[365509126,1749723032495,-5.10352334,0.00018506,2]
[365509127,1749723032532,-2109.22983479,0.00018506,2]
[365509139,1749723032893,-1224.67664187,0.00018506,2]
[365509141,1749723032902,-150.0,0.00018531,7]
[365509143,1749723032912,-150.0,0.00018535,2]
[365509145,1749723032921,-300.0,0.0001856,2]
[365509147,1749723032931,-314.06029565,0.0001856,2]
[365509149,1749723032942,-885.93970435,0.0001856,2]
[365509151,1749723032951,-941.60957716,0.00018561,2]
[365509153,1749723032963,-396.3812676,0.00018561,2]
[365509161,1749723033031,-1564.37651369,0.00018561,2]
[365509163,1749723033044,-7525.31248,0.00018561,2]
[365509262,1749723034182,490.0,0.00024658,120]
[365509425,1749723038572,-662.48847744,0.00018561,2]
[365509426,1749723038584,-12809.83168411,0.00018561,2]
[365509427,1749723038594,-1637.2,0.00018568,2]
[365509428,1749723038605,-1000.0,0.00018572,2]
[365509429,1749723038615,-255.50430771,0.00018599,2]
[365509430,1749723038624,-301.83,0.00018599,2]
[365509431,1749723038634,-300.26,0.00018599,2]
[365509432,1749723038644,-304.83,0.00018601,2]
[365509433,1749723038653,-304.07,0.00018601,2]
[365509434,1749723038662,-302.96,0.00018608,2]
[365509436,1749723038671,-302.76,0.00018608,2]
[365509438,1749723038681,-303.84,0.00018651,2]
[365509440,1749723038691,-303.32,0.00018651,2]
[365509442,1749723038700,-250.0,0.00018716,2]
[365509443,1749723038709,-755.93733715,0.00018789,2]
[365509446,1749723038719,-200.0,0.00018805,2]
[365509447,1749723038728,-326.62,0.0001885,2]
[365509448,1749723038737,-301.38861817,0.00018851,2]
[365509449,1749723038749,-1.56138183,0.00018851,2]
[365509450,1749723038759,-302.78,0.00018855,2]
[365509451,1749723038768,-597.42,0.00018871,2]
[365509453,1749723038777,-600.0,0.00018875,4]
[365509455,1749723038787,-207.4,0.00018892,2]
[365509457,1749723038796,-219.61678131,0.000189,2]
[365509459,1749723038805,-442.94,0.0001891,2]
[365509461,1749723038815,-165.09,0.00018922,2]
[365509463,1749723038825,-886.43,0.00018922,2]
[365509465,1749723038836,-1000.0,0.00019,2]
[365509467,1749723038846,-219.6167813,0.00019011,2]
[365509469,1749723038857,-372.29020479,0.000191,2]
[365509472,1749723038885,-627.70979521,0.000191,2]
[365509474,1749723038895,-219.6167813,0.00019122,2]
[365509476,1749723038905,-416.44098805,0.00019186,2]
[365509478,1749723038914,-883.63243544,0.000192,2]
[365509625,1749723040447,-116.36756456,0.000192,2]
[365509627,1749723040457,-660.76163433,0.00019203,2]
[365509629,1749723040468,-9.87836567,0.00019203,2]
[365509631,1749723040479,-219.6167813,0.00019233,2]
[365509633,1749723040488,-203.0,0.00019259,3]
[365509635,1749723040498,-114.85485303,0.000193,2]
[365509639,1749723040529,-671.60174354,0.000193,2]
[365509687,1749723040965,-213.54340343,0.000193,2]
[365509689,1749723040974,-3.96611216,0.00019344,2]
[365509772,1749723043358,-177.12607693,0.00019344,2]
[365509773,1749723043368,-177.79284765,0.00019344,2]
[365509775,1749723043550,-37.85782149,0.00019344,2]
[365509776,1749723043560,-151.0,0.00019387,2]
[365509777,1749723043570,-500.0,0.00019387,2]
[365509778,1749723043579,-500.0,0.00019387,2]
[365509779,1749723043588,-500.0,0.00019387,2]
[365509780,1749723043598,-500.0,0.00019387,2]
[365509781,1749723043607,-500.0,0.00019387,2]
[365509782,1749723043617,-500.0,0.00019387,2]
[365509783,1749723043626,-500.0,0.00019387,2]
[365509784,1749723043635,-618.55656985,0.00019387,2]
[365509785,1749723043644,-500.0,0.00019387,2]
[365509786,1749723043654,-500.0,0.00019387,2]
[365509787,1749723043663,-500.0,0.00019387,2]
[365509788,1749723043672,-541.99373828,0.00019387,2]
[365509789,1749723043681,-500.0,0.00019387,2]
[365509790,1749723043690,-500.0,0.00019387,2]
[365509791,1749723043699,-500.0,0.00019387,2]
[365509792,1749723043709,-500.0,0.00019387,2]
[365509793,1749723043718,-500.0,0.00019387,2]
[365509794,1749723043727,-500.0,0.00019387,2]
[365509795,1749723043736,-500.0,0.00019387,2]
[365509796,1749723043745,-500.0,0.00019387,2]
[365509798,1749723043754,-388.59187038,0.00019387,2]
[365509800,1749723043765,-111.40812962,0.00019387,2]
[365509803,1749723043774,-365.18672332,0.00019387,2]
[365509807,1749723043806,-134.81327668,0.00019387,2]
[365509809,1749723043815,-500.0,0.00019387,2]
[365509811,1749723043826,-500.0,0.00019387,2]
[365509813,1749723043835,-500.0,0.00019387,2]
[365509815,1749723043845,-500.0,0.00019387,2]
[365509817,1749723043854,-500.0,0.00019387,2]
[365509819,1749723043864,-224.76540248,0.000194,2]
[365509821,1749723043892,-775.23459752,0.000194,2]
[365509822,1749723043901,-219.6167813,0.00019456,2]
[365509823,1749723043911,-152.0,0.000195,3]
[365509824,1749723043921,-1000.0,0.000195,2]
[365509825,1749723043930,-812.001065,0.00019502,2]
[365509826,1749723043940,-894.0,0.00019533,2]
[365509827,1749723043949,-219.6167813,0.00019567,2]
[365509828,1749723043958,-370.64570769,0.00019581,2]
[365509829,1749723043968,-219.6167813,0.00019678,2]
[365509830,1749723043978,-219.6167813,0.00019789,2]
[365509831,1749723043988,-71491.89647028,0.000198,2]
[365509835,1749723046466,-577.8542653,0.000198,2]
[365509836,1749723046479,-435.90249913,0.000198,2]
[365509837,1749723046589,-2159.54794173,0.000198,2]
[365509838,1749723046632,-2677.22492716,0.000198,2]
[365509847,1749723060205,3200.23,0.00024658,120]
[365509848,1749723071411,1960.0,0.00024658,120]
[365509849,1749723095016,1470.0,0.00024658,120]
[365509850,1749723148387,499.99,0.00024658,120]
[365509851,1749723174100,1470.0,0.00024658,120]
[365509852,1749723200925,490.0,0.00024658,120]
[365509854,1749723276736,603.57,0.00016355,2]
[365509855,1749723415440,1146.24,0.00024658,120]
[365509856,1749723439901,490.0,0.00024658,120]
[365509869,1749723911491,203.0,0.00017494,2]
[365509870,1749723999129,-329.94204059,0.00018219,2]
[365509871,1749724031083,-790.58011146,0.00018219,2]
[365509872,1749724031105,-66.09661268,0.00018231,2]
[365509873,1749724076086,227.54,0.00024658,120]
[365509874,1749724105999,300.42666607,0.000178,3]
[365509877,1749724138072,1000.0,0.00024657,120]
[365509878,1749724138247,1000.0,0.00024657,120]
[365509879,1749724138527,1000.0,0.00024657,120]
[365509880,1749724138768,1000.0,0.00024657,120]
[365509881,1749724139029,1000.0,0.00024657,120]
[365509882,1749724139282,1000.0,0.00024657,120]
[365509883,1749724139521,342.51441711,0.00024657,120]
[365509884,1749724153501,500.0,0.00024658,120]
[365509888,1749724219433,-540.13869883,0.0002,10]
[365509889,1749724223058,2716.88457711,0.00024658,120]
[365509896,1749724231432,-329.75,0.00018218,2]
[365509897,1749724231480,-870.25,0.00018218,2]
[365509898,1749724231491,-26467.55669695,0.00018219,2]
[365509899,1749724231501,-5179.89338732,0.00018231,2]
[365509900,1749724231510,-586.58,0.00018298,2]
[365509901,1749724231519,-1130.51608924,0.000183,5]
[365509902,1749724231531,-781.68197868,0.000183,5]
[365509903,1749724231542,-53.80193208,0.000183,5]
[365509904,1749724231552,-1966.0,0.000183,5]
[365509905,1749724231561,-127.2716665,0.000183,5]
[365509906,1749724231572,-727.64803941,0.000183,5]
[365509907,1749724231587,-1111.08029409,0.000183,5]
[365509908,1749724231596,-850.94116161,0.000183,5]
[365509909,1749724231608,-816.64392707,0.000183,5]
[365509910,1749724231646,-298.41491132,0.000183,5]
[365509911,1749724231656,-1718.09837792,0.000183,5]
[365509912,1749724231667,-248.90162208,0.000183,5]
[365509913,1749724231678,-1966.0,0.000183,5]
[365509914,1749724231690,-200.0,0.00018303,2]
[365509915,1749724231700,-443.21,0.00018314,2]
[365509916,1749724231709,-150.0,0.00018332,7]
[365509917,1749724231719,-1000.0,0.00018376,2]
[365509918,1749724231727,-200.0,0.0001838,2]
[365509919,1749724231737,-165.09,0.0001838,2]
[365509920,1749724231746,-603.57,0.00018619,2]
[365509921,1749724231755,-203.0,0.00018822,3]
[365509922,1749724231764,-258.68217201,0.000189,2]
[365509923,1749724231774,-207.4,0.00018911,2]
[365509924,1749724231783,-151.0,0.0001892,2]
[365509925,1749724231792,-424.89,0.00018922,2]
[365509926,1749724231801,-302.43,0.00018922,2]
[365509927,1749724231811,-304.04,0.00018922,2]
[365509928,1749724231820,-300.49,0.00018922,2]
[365509929,1749724231829,-456.14749522,0.00018922,2]
[365509930,1749724231839,-304.96,0.00018922,2]
[365509931,1749724231848,-302.88,0.00018922,2]
[365509932,1749724231857,-303.48,0.00018923,2]
[365509933,1749724231866,-302.64,0.00018923,2]
[365509934,1749724231875,-424.89,0.00018927,2]
[365509935,1749724231884,-424.89,0.00018932,2]
[365509936,1749724231894,-424.89,0.00018937,2]
[365509937,1749724231903,-424.89,0.00018942,2]
[365509938,1749724231912,-229.62871068,0.00018947,2]
[365509940,1749724231942,-195.26128932,0.00018947,2]
[365509941,1749724231951,-424.89,0.00018952,2]
[365509942,1749724231960,-424.89,0.00018957,2]
[365509943,1749724231970,-204.95871068,0.00018962,2]
[365509945,1749724231981,-219.93128932,0.00018962,2]
[365509947,1749724231990,-424.89,0.00018967,2]
[365509949,1749724232000,-424.89,0.00018972,2]
[365509951,1749724232011,-424.89,0.00018977,2]
[365509953,1749724232021,-150.0,0.00018978,2]
[365509955,1749724232030,-150.0,0.00018978,2]
[365509956,1749724232039,-424.89,0.00018982,2]
[365509957,1749724232049,-165.43,0.00018983,2]
[365509958,1749724232058,-424.89,0.00018987,2]
[365509959,1749724232067,-159.38871078,0.00018992,2]
[365509960,1749724232078,-265.50128922,0.00018992,2]
[365509961,1749724232089,-424.89,0.00018997,2]
[365509962,1749724232098,-292.13410316,0.00019,2]
[365509979,1749724237442,-169.06589684,0.00019,2]
[365509981,1749724237451,-250.0,0.00019,2]
[365509982,1749724237461,-185.14595874,0.00019002,2]
[365509983,1749724237547,-239.74404126,0.00019002,2]
[365509984,1749724237556,-350.99356834,0.00019007,2]
[365509985,1749724237612,-73.89643166,0.00019007,2]
[365509986,1749724237621,-424.89,0.00019012,2]
[365509987,1749724237631,-424.89,0.00019017,2]
[365509988,1749724237641,-909.63,0.00019078,2]
[365509989,1749724237651,-150.0,0.00019078,2]
[365509990,1749724237660,-150.0,0.00019078,2]
[365509991,1749724237670,-150.0,0.00019078,2]
[365509992,1749724237679,-150.0,0.00019078,2]
[365509993,1749724237688,-375.0,0.00019096,2]
[365509994,1749724237699,-947.99356834,0.000191,2]
[365509995,1749724237711,-645.85643166,0.000191,2]
[365509996,1749724237720,-797.09,0.000191,2]
[365509997,1749724237730,-575.77946826,0.000191,2]
[365509998,1749724237788,-219.99053174,0.000191,2]
[365509999,1749724237798,-150.0,0.00019178,2]
[365510000,1749724237808,-150.0,0.00019178,2]
[365510001,1749724237817,-100.13304032,0.00019178,2]
[365510002,1749724237828,-63.11695968,0.00019178,2]
[365510003,1749724237838,-301.1,0.00019178,2]
[365510004,1749724237848,-665.29005832,0.00019502,2]
[365510005,1749724237859,-163.85278168,0.00019502,2]
[365510006,1749724237869,-230.02006119,0.00019558,2]
[365510007,1749724237881,-275.4005254,0.00019558,2]
[365510008,1749724237891,-120.4135617,0.0001958,2]
[365510009,1749724237903,-262.0664383,0.0001958,2]
[365510010,1749724237913,-1163.98,0.00019589,2]
[365510011,1749724237925,-1172.97,0.00019589,2]
[365510013,1749724237938,-578.5212217,0.000196,2]
[365510019,1749724237983,-254.35520314,0.000196,2]
[365510021,1749724237994,-331.10357516,0.000196,2]
[365510023,1749724238003,-1021.0,0.000196,2]
[365510025,1749724238014,-382.42,0.00019645,2]
[365510027,1749724238024,-764.84,0.0001969,2]
[365510029,1749724238034,-500.0,0.00019698,2]
[365510031,1749724238043,-500.0,0.00019698,2]
[365510033,1749724238053,-620.0,0.00019698,2]
[365510035,1749724238063,-500.0,0.00019698,2]
[365510038,1749724238074,-500.0,0.00019698,2]
[365510041,1749724238084,-500.0,0.00019698,2]
[365510044,1749724238094,-388.71059562,0.00019698,2]
[365510237,1749724240007,-111.28940438,0.00019698,2]
[365510240,1749724240017,-500.0,0.00019698,2]
[365510242,1749724240027,-496.82989684,0.00019698,2]
[365510244,1749724240036,-500.0,0.00019698,2]
[365510246,1749724240045,-500.0,0.00019698,2]
[365510248,1749724240054,-500.0,0.00019698,2]
[365510250,1749724240063,-500.0,0.00019698,2]
[365510252,1749724240072,-500.0,0.00019698,2]
[365510254,1749724240081,-362.29597713,0.00019698,2]
[365510255,1749724240092,-500.0,0.00019698,2]
[365510258,1749724240101,-500.0,0.00019698,2]
[365510260,1749724240111,-500.0,0.00019698,2]
[365510261,1749724240120,-500.0,0.00019698,2]
[365510263,1749724240130,-500.0,0.00019698,2]
[365510266,1749724240139,-500.0,0.00019698,2]
[365510268,1749724240149,-500.0,0.00019698,2]
[365510270,1749724240158,-500.0,0.00019699,2]
[365510272,1749724240168,-965.4996,0.00019699,2]
[365510274,1749724240177,-6063.8114,0.00019699,2]
[365510276,1749724240187,-1000.0,0.00019699,2]
[365510278,1749724240198,-1685.3671,0.000197,2]
[365510280,1749724240207,-740.9785,0.000197,2]
[365510282,1749724240217,-1683.3002,0.000197,2]
[365510284,1749724240226,-231.11061371,0.000197,2]
[365510286,1749724240235,-2240.83937557,0.000197,2]
[365510288,1749724240245,-175.37541751,0.000197,2]
[365510290,1749724240254,-824.94723423,0.000197,2]
[365510292,1749724240264,-1147.26,0.000197,2]
[365510294,1749724240273,-302.56922482,0.000197,2]
[365510297,1749724240284,-1008.0,0.000197,2]
[365510298,1749724240293,-302.56922481,0.0001971,2]
[365510301,1749724240303,-302.56922481,0.00019721,2]
[365510302,1749724240312,-231.11061368,0.00019722,2]
[365510305,1749724240321,-2240.83937554,0.00019722,2]
[365510306,1749724240330,-302.56922481,0.00019731,2]
[365510308,1749724240340,-500.0,0.0001974,2]
[365510310,1749724240350,-500.0,0.00019741,2]
[365510311,1749724240359,-200.0,0.00019741,2]
[365510312,1749724240369,-302.56922481,0.00019741,2]
[365510313,1749724240378,-231.11061368,0.00019744,2]
[365510314,1749724240387,-2240.83937554,0.00019744,2]
[365510315,1749724240396,-302.56922481,0.00019752,2]
[365510316,1749724240406,-1192.83146676,0.00019762,2]
[365510317,1749724240415,-302.56922481,0.00019762,2]
[365510318,1749724240424,-150.0,0.00019764,2]
[365510319,1749724240433,-231.11061368,0.00019767,2]
[365510320,1749724240443,-2240.83937554,0.00019767,2]
[365510321,1749724240453,-302.56922481,0.00019772,2]
[365510322,1749724240462,-302.56922481,0.00019783,2]
[365510323,1749724240471,-231.11061368,0.00019789,2]
[365510324,1749724240480,-2240.83937554,0.00019789,2]
[365510325,1749724240489,-152.83,0.0001979,2]
[365510326,1749724240498,-300.0,0.00019799,2]
[365510327,1749724240507,-1000.0,0.00019799,2]
[365510328,1749724240516,-666.0,0.00019799,2]
[365510329,1749724240525,-300.0,0.00019799,2]
[365510330,1749724240535,-300.0,0.00019799,2]
[365510331,1749724240543,-300.0,0.00019799,2]
[365510332,1749724240553,-322.97258178,0.00019799,2]
[365510333,1749724240562,-452.20670899,0.00019799,2]
[365510334,1749724240571,-178.90436258,0.00019799,2]
[365510335,1749724240580,-351.55867256,0.00019799,2]
[365510336,1749724240589,-300.0,0.00019799,2]
[365510337,1749724240598,-307.04182332,0.00019799,2]
[365510338,1749724240607,-425988.37376695,0.00019799,3]
[365510339,1749724240617,-525.5202252,0.000198,3]
[365510340,1749724240625,-216381.50136857,0.000198,2]
[365510341,1749724240635,-150.0,0.000198,2]
[365510342,1749724240644,-1163.98,0.000198,2]
[365510343,1749724240654,-150.0,0.000198,2]
[365510344,1749724240663,-1163.98,0.000198,2]
[365510345,1749724240673,-150.0,0.000198,2]
[365510346,1749724240682,-1163.98,0.000198,2]
[365510347,1749724240693,-151.0,0.000198,2]
[365510348,1749724240702,-152.222416,0.000198,2]
[365510349,1749724240712,-278.244,0.000198,2]
[365510350,1749724240721,-151.0,0.000198,2]
[365510351,1749724240730,-100000.0,0.000198,2]
[365510352,1749724240740,-151.0,0.000198,2]
[365510353,1749724240750,-151.0,0.000198,2]
[365510354,1749724240759,-151.0,0.000198,2]
[365510355,1749724240768,-151.0,0.000198,2]
[365510356,1749724240778,-151.0,0.000198,2]
[365510357,1749724240787,-207.334536,0.000198,2]
[365510358,1749724240796,-151.0,0.000198,2]
[365510359,1749724240805,-151.0,0.000198,2]
[365510360,1749724240814,-231.521057,0.000198,2]
[365510361,1749724240824,-231.521057,0.000198,2]
[365510362,1749724240833,-151.0,0.000198,2]
[365510363,1749724240841,-151.0,0.000198,2]
[365510364,1749724240851,-217.046769,0.000198,2]
[365510365,1749724240860,-8228.563616,0.000198,2]
[365510366,1749724240870,-370.612793,0.000198,2]
[365510367,1749724240879,-8228.563616,0.000198,2]
[365510368,1749724240889,-370.612793,0.000198,2]
[365510369,1749724240898,-151.0,0.000198,2]
[365510370,1749724240907,-151.0,0.000198,2]
[365510371,1749724240917,-151.0,0.000198,2]
[365510372,1749724240930,-151.0,0.000198,2]
[365510373,1749724240939,-164.28075,0.000198,2]
[365510374,1749724240952,-151.0,0.000198,2]
[365510375,1749724240963,-151.0,0.000198,2]
[365510376,1749724240973,-347.610544,0.000198,2]
[365510377,1749724240982,-347.610544,0.000198,2]
[365510378,1749724240992,-151.0,0.000198,2]
[365510379,1749724241003,-151.0,0.000198,2]
[365510380,1749724241013,-151.0,0.000198,2]
[365510381,1749724241022,-151.0,0.000198,2]
[365510382,1749724241032,-153.186236,0.000198,2]
[365510383,1749724241041,-153.186236,0.000198,2]
[365510384,1749724241050,-153.186236,0.000198,2]
[365510385,1749724241059,-153.186236,0.000198,2]
[365510386,1749724241068,-263.019728,0.000198,2]
[365510387,1749724241077,-263.019728,0.000198,2]
[365510388,1749724241086,-263.019728,0.000198,2]
[365510389,1749724241095,-263.019728,0.000198,2]
[365510390,1749724241104,-1203.665126,0.000198,2]
[365510391,1749724241114,-1203.665126,0.000198,2]
[365510392,1749724241123,-151.0,0.000198,2]
[365510393,1749724241132,-1203.665126,0.000198,2]
[365510394,1749724241142,-151.0,0.000198,2]
[365510395,1749724241151,-1203.665126,0.000198,2]
[365510396,1749724241160,-151.0,0.000198,2]
[365510397,1749724241170,-151.0,0.000198,2]
[365510398,1749724241179,-157.720875,0.000198,2]
[365510399,1749724241189,-157.720875,0.000198,2]
[365510400,1749724241200,-71246.26794612,0.000198,2]
[365510401,1749724241210,-1372.17189,0.000198,2]
[365510402,1749724241219,-1372.17189,0.000198,2]
[365510403,1749724241228,-1372.17189,0.000198,2]
[365510404,1749724241237,-1372.17189,0.000198,2]
[365510405,1749724241246,-151.0,0.000198,2]
[365510406,1749724241255,-151.0,0.000198,2]
[365510407,1749724241265,-151.0,0.000198,2]
[365510408,1749724241274,-151.0,0.000198,2]
[365510409,1749724241283,-151.0,0.000198,2]
[365510410,1749724241292,-224.98574,0.000198,2]